bitfinex-derivatives/quotes_BTCF0:USTF0_20241006
["timestamp","ask_amount","ask_price","bid_price","bid_amount"]
[1728224534304,0.0134,62360.0,62359.0,0.29041965]
[1728224534804,0.0134,62360.0,62359.0,0.26534843]
[1728224535007,0.0134,62360.0,62359.0,0.1804196]
[1728224535211,0.0134,62360.0,62359.0,0.2904196]
[1728224537701,0.0134,62360.0,62359.0,0.2262655]
[1728224538207,0.0134,62360.0,62359.0,0.41963104]
[1728224538413,0.0134,62360.0,62359.0,0.29832423]
[1728224538711,0.0134,62360.0,62359.0,0.32339565]
[1728224538912,0.0297,62368.0,62361.0,0.064145]
[1728224539114,0.0297,62368.0,62367.0,0.06415851]
[1728224539804,0.0297,62368.0,62363.0,0.08019664]
[1728224539998,0.0297,62368.0,62362.0,0.064144]
[1728224539999,0.0297,62368.0,62364.0,0.08019664]
[1728224540207,0.0297,62368.0,62367.0,0.06415778]
[1728224540401,0.0297,62368.0,62363.0,0.14433964]
[1728224540608,0.0377,62368.0,62367.0,0.001]
[1728224541219,0.3985,62368.0,62367.0,0.001]
[1728224542510,0.3985,62368.0,62367.0,0.06515798]
[1728224542907,0.3905,62368.0,62367.0,0.001]
[1728224543611,0.8715,62368.0,62367.0,0.06615878]
[1728224543806,0.9815,62368.0,62367.0,0.06615878]
[1728224544018,0.9815,62368.0,62367.0,0.002]
[1728224544019,1.5815,62368.0,62367.0,0.002]
[1728224546111,1.645638,62368.0,62367.0,0.002]
[1728224547201,1.284838,62368.0,62367.0,0.002]
[1728224547414,1.645638,62368.0,62367.0,0.0501177]
[1728224548718,1.67111117,62368.0,62367.0,0.0501177]
[1728224551110,1.67111117,62368.0,62364.0,0.04811015]
[1728224551420,0.064143,62363.0,62361.0,0.0112]
[1728224551622,0.174145,62362.0,62359.0,0.064546]
[1728224552017,0.11,62362.0,62360.0,0.064146]
[1728224552321,0.064145,62361.0,62360.0,0.064146]
[1728224552714,0.545225,62361.0,62360.0,0.064146]
[1728224552914,0.064145,62361.0,62360.0,0.064146]
[1728224553514,0.064146,62360.0,62359.0,0.0014]
[1728224553715,0.11,62360.0,62359.0,0.065547]
[1728224555512,0.11,62360.0,62359.0,0.064547]
[1728224556122,0.11,62360.0,62359.0,0.064947]
[1728224556522,0.11,62360.0,62359.0,0.065947]
[1728224556523,0.112,62360.0,62359.0,0.065947]
[1728224557629,0.114,62360.0,62359.0,0.066947]
[1728224563818,0.114,62360.0,62359.0,0.0028]
[1728224564019,0.178146,62360.0,62359.0,0.0028]
[1728224568628,0.178146,62360.0,62359.0,0.066947]
[1728224568835,0.114,62360.0,62359.0,0.066947]
[1728224571936,0.4748,62360.0,62359.0,0.066947]
[1728224574134,0.3648,62360.0,62359.0,0.066947]
[1728224574342,0.4748,62360.0,62359.0,0.066947]
[1728224574637,0.3648,62360.0,62359.0,0.066947]
[1728224574845,0.4748,62360.0,62359.0,0.066947]
[1728224575925,0.114,62360.0,62359.0,0.066947]
[1728224576130,0.4748,62360.0,62359.0,0.066947]
[1728224583043,0.114,62360.0,62359.0,0.066947]
[1728224589548,0.004,62360.0,62359.0,0.066947]
[1728224589943,0.114,62360.0,62359.0,0.066947]
[1728224597343,0.178146,62360.0,62359.0,0.0028]
[1728224606762,0.22571972,62360.0,62359.0,0.0028]
[1728224607061,0.178146,62360.0,62359.0,0.0028]
[1728224607861,0.22572669,62360.0,62359.0,0.0028]
[1728224608068,0.178146,62360.0,62359.0,0.0028]
[1728224611263,0.538946,62360.0,62359.0,0.0028]
[1728224611468,0.4748,62360.0,62359.0,0.066947]
[1728224617865,0.114,62360.0,62359.0,0.066947]
[1728224618174,0.4748,62360.0,62359.0,0.066947]
[1728224619476,0.114,62360.0,62359.0,0.066947]
[1728224622374,0.114,62360.0,62359.0,0.09194263]
[1728224631174,0.114,62360.0,62359.0,0.17213927]
[1728224631370,0.114,62360.0,62359.0,0.09194263]
[1728224631764,0.114,62360.0,62359.0,0.17213927]
[1728224631977,0.114,62360.0,62359.0,0.09194263]
[1728224632376,0.114,62360.0,62359.0,0.066947]
[1728224636573,0.114,62360.0,62359.0,0.09218466]
[1728224639280,0.114,62360.0,62359.0,0.17231551]
[1728224641078,0.114,62360.0,62359.0,0.27144248]
[1728224643584,0.114,62360.0,62359.0,0.09218466]
[1728224651598,0.114,62360.0,62359.0,0.19126323]
[1728224652890,0.114,62360.0,62359.0,0.16602557]
[1728224654681,0.114,62360.0,62359.0,0.16622414]
[1728224655894,0.004,62360.0,62359.0,0.16622414]
[1728224656291,0.114,62360.0,62359.0,0.16622414]
[1728224658798,0.114,62360.0,62359.0,0.066947]
[1728224661596,0.004,62360.0,62359.0,0.176947]
[1728224662494,0.004,62360.0,62359.0,0.20201851]
[1728224663294,0.0037,62367.0,62366.0,0.06414]
[1728224663500,0.00240564,62373.0,62372.0,0.064134]
[1728224665003,0.00440564,62373.0,62372.0,0.065134]
[1728224665297,0.002,62373.0,62372.0,0.065134]
[1728224666593,0.002,62373.0,62372.0,0.095134]
[1728224667402,0.002,62373.0,62372.0,0.15922542]
[1728224667593,0.0004,62374.0,62373.0,0.064133]
[1728224668105,0.0004,62374.0,62373.0,0.174133]
[1728224668494,0.0004,62374.0,62373.0,0.23822442]
[1728224668693,0.0004,62374.0,62373.0,0.12822442]
[1728224668911,0.0004,62374.0,62373.0,0.23822442]
[1728224669097,0.0004,62374.0,62373.0,0.24022442]
[1728224669408,0.0004,62374.0,62373.0,0.176133]
[1728224670507,0.0004,62374.0,62373.0,0.066133]
[1728224670713,0.0004,62374.0,62373.0,0.176133]
[1728224676113,0.0004,62374.0,62373.0,0.176533]
[1728224679014,0.0004,62374.0,62373.0,0.066533]
[1728224679214,0.0004,62374.0,62373.0,0.176533]
[1728224691223,0.0004,62374.0,62373.0,0.3558283]
[1728224691531,0.0004,62374.0,62373.0,0.25711091]
[1728224691726,0.0004,62374.0,62373.0,0.14711091]
[1728224691928,0.0004,62374.0,62373.0,0.35585393]
[1728224692119,0.0004,62374.0,62373.0,0.25711091]
[1728224692429,0.0004,62374.0,62373.0,0.27571769]
[1728224694622,0.0004,62374.0,62373.0,0.40337471]
[1728224695032,0.0004,62374.0,62373.0,0.30721769]
[1728224695332,0.0004,62374.0,62373.0,0.40337471]
[1728224696127,0.0004,62374.0,62373.0,0.30721769]
[1728224696734,0.0004,62374.0,62373.0,0.208433]
[1728224703329,0.0004,62374.0,62373.0,0.23349855]
[1728224703529,0.0004,62374.0,62373.0,0.59429855]
[1728224703739,0.0004,62374.0,62373.0,0.81089096]
[1728224704041,0.0004,62374.0,62373.0,0.78582541]
[1728224704545,0.0004,62374.0,62373.0,0.81089096]
[1728224705444,0.0004,62374.0,62373.0,0.81089681]
[1728224706145,0.0004,62374.0,62373.0,0.81129681]
[1728224706827,0.0004,62374.0,62373.0,0.78623126]
[1728224707031,0.0004,62374.0,62373.0,0.81129712]
[1728224707836,0.0004,62374.0,62373.0,0.70129712]
[1728224708037,0.0004,62374.0,62373.0,0.81129712]
[1728224711746,0.0004,62374.0,62373.0,0.69351366]
[1728224713453,0.0004,62374.0,62373.0,0.77360222]
[1728224713635,0.0004,62374.0,62373.0,0.69351366]
[1728224713842,0.0004,62374.0,62373.0,0.77360253]
[1728224714743,0.0004,62374.0,62373.0,0.41280253]
[1728224715148,0.0004,62374.0,62373.0,0.41288701]
[1728224715650,0.0004,62374.0,62373.0,0.33279814]
[1728224716257,0.0004,62374.0,62373.0,0.30773228]
[1728224716448,0.0004,62374.0,62373.0,0.3327984]
[1728224718748,0.0004,62374.0,62373.0,0.45069824]
[1728224719947,0.0004,62374.0,62373.0,0.45070745]
[1728224721354,0.0004,62374.0,62373.0,0.45110745]
[1728224721762,0.0004,62374.0,62373.0,0.34110745]
[1728224721947,0.0004,62374.0,62373.0,0.41960745]
[1728224726053,0.0004,62374.0,62373.0,0.39454133]
[1728224726255,0.0004,62374.0,62373.0,0.41960768]
[1728224726561,0.0004,62374.0,62373.0,0.33467381]
[1728224726855,0.0004,62374.0,62373.0,0.32677612]
[1728224727159,0.0004,62374.0,62373.0,0.30170999]
[1728224727660,0.0004,62374.0,62373.0,0.39785545]
[1728224728050,0.0004,62374.0,62373.0,0.37288788]
[1728224729763,0.0004,62374.0,62373.0,0.27674242]
[1728224731367,0.0004,62374.0,62373.0,0.37288788]
[1728224731556,0.0004,62374.0,62373.0,0.3979543]
[1728224731758,0.0004,62374.0,62373.0,0.30180884]
[1728224732066,0.0004,62374.0,62373.0,0.41978713]
[1728224732658,0.0004,62374.0,62373.0,0.41878713]
[1728224732858,0.0004,62374.0,62373.0,0.41978671]
[1728224733756,0.0004,62374.0,62373.0,0.30180842]
[1728224734159,0.0004,62374.0,62373.0,0.202799]
[1728224734463,0.0004,62374.0,62373.0,0.30169907]
[1728224734854,0.0004,62374.0,62373.0,0.30869907]
[1728224735053,0.0004,62374.0,62373.0,0.31469907]
[1728224736160,0.0004,62374.0,62373.0,0.20469907]
[1728224736463,0.0004,62374.0,62373.0,0.31509907]
[1728224738968,0.0004,62374.0,62373.0,0.216199]
[1728224739167,0.0004,62374.0,62373.0,0.31510833]
[1728224741767,0.0004,62374.0,62373.0,0.43299011]
[1728224746068,0.0004,62374.0,62373.0,0.40792411]
[1728224746577,0.0004,62374.0,62373.0,0.43298927]
[1728224746767,0.0004,62374.0,62373.0,0.45805479]
[1728224748172,0.0004,62374.0,62373.0,0.43298927]
[1728224748567,0.0004,62374.0,62373.0,0.43265015]
[1728224748769,0.0004,62374.0,62373.0,0.31494623]
[1728224749576,0.0004,62374.0,62373.0,0.65068107]
[1728224749968,0.0004,62374.0,62373.0,0.67574616]
[1728224751078,0.0004,62374.0,62373.0,0.67614616]
[1728224752785,0.0004,62374.0,62373.0,0.67614613]
[1728224753572,0.0004,62374.0,62373.0,0.67612498]
[1728224754281,0.1104,62374.0,62373.0,0.14119198]
[1728224754480,0.1104,62374.0,62373.0,0.19618155]
[1728224754682,0.1412,62374.0,62373.0,0.0174]
[1728224756985,0.1412,62374.0,62373.0,0.11633259]
[1728224758387,0.1412,62374.0,62373.0,0.11631327]
[1728224758578,0.0312,62374.0,62373.0,0.11631327]
[1728224760186,0.1412,62374.0,62373.0,0.11631327]
[1728224760976,0.0312,62374.0,62373.0,0.40829128]
[1728224763590,0.0312,62374.0,62373.0,0.29044627]
[1728224763979,0.0312,62374.0,62373.0,0.40830401]
[1728224766281,0.0312,62374.0,62373.0,0.40870401]
[1728224766591,0.0312,62374.0,62373.0,0.40866633]
[1728224770288,0.0312,62374.0,62373.0,0.43373297]
[1728224770593,0.0312,62374.0,62373.0,0.40866633]
[1728224771094,0.0312,62374.0,62373.0,0.191933]
[1728224771392,0.0312,62374.0,62373.0,0.21699967]
[1728224774093,0.0312,62374.0,62373.0,0.10699967]
[1728224774792,0.0312,62374.0,62373.0,0.081933]
[1728224775089,0.0312,62374.0,62373.0,0.10699944]
[1728224775398,0.0312,62374.0,62373.0,0.13206599]
[1728224775593,0.0312,62374.0,62373.0,0.10699944]
[1728224776092,0.0312,62374.0,62373.0,0.081933]
[1728224777183,0.0004,62374.0,62373.0,0.081933]
[1728224777495,0.0004,62374.0,62373.0,0.16199835]
[1728224778693,0.0004,62374.0,62373.0,0.26077831]
[1728224779085,0.0004,62374.0,62373.0,0.29844674]
[1728224781298,0.0004,62374.0,62373.0,0.29884674]
[1728224781601,0.0004,62374.0,62373.0,0.32391284]
[1728224785396,0.0004,62374.0,62373.0,0.29884674]
[1728224785590,0.0004,62374.0,62373.0,0.3239124]
[1728224786002,0.0004,62374.0,62373.0,0.20617862]
[1728224787506,0.0004,62374.0,62373.0,0.18111296]
[1728224788203,0.0004,62374.0,62373.0,0.18110323]
[1728224788596,0.0004,62374.0,62373.0,0.20616878]
[1728224790504,0.0004,62374.0,62373.0,0.20620962]
[1728224790697,0.0004,62374.0,62373.0,0.18114407]
[1728224791598,0.0004,62374.0,62373.0,0.20620979]
[1728224792806,0.0004,62374.0,62373.0,0.20620977]
[1728224794107,0.0004,62374.0,62373.0,0.32397305]
[1728224795207,0.0004,62374.0,62373.0,0.32394512]
[1728224795810,0.0004,62374.0,62373.0,0.29887942]
[1728224796108,0.0004,62374.0,62373.0,0.32434509]
[1728224798403,0.0004,62374.0,62373.0,0.29927942]
[1728224798607,0.0004,62374.0,62373.0,0.32434465]
[1728224799210,0.0004,62374.0,62373.0,0.32434459]
[1728224799508,0.0004,62374.0,62373.0,0.29927942]
[1728224799708,0.0037,62380.0,62374.0,0.064132]
[1728224799908,0.0037,62384.0,62379.0,0.11]
[1728224800102,0.0004,62385.0,62384.0,0.174122]
[1728224800301,0.0004,62385.0,62384.0,0.36887106]
[1728224800801,0.0004,62385.0,62384.0,0.36927106]
[1728224801104,0.0004,62385.0,62384.0,0.2225372]
[1728224801307,0.0004,62385.0,62384.0,0.174522]
[1728224801499,0.0004,62385.0,62384.0,0.2225372]
[1728224801705,0.0004,62385.0,62384.0,0.2235372]
[1728224803020,0.0004,62385.0,62384.0,0.176522]
[1728224803203,0.0004,62385.0,62384.0,0.2245372]
[1728224803406,0.0004,62385.0,62384.0,0.176522]
[1728224808511,0.0004,62385.0,62384.0,0.176922]
[1728224810618,0.0004,62385.0,62384.0,0.25694793]
[1728224811322,0.0004,62385.0,62384.0,0.35584314]
[1728224812314,0.0037,62392.0,62391.0,0.064115]
[1728224812517,0.01161397,62400.0,62391.0,0.56510674]
[1728224812714,0.3608,62399.0,62398.0,0.11]
[1728224813218,0.00791397,62400.0,62398.0,1.12875173]
[1728224813428,0.0043,62423.0,62398.0,1.12875173]
[1728224813429,0.0618,62422.0,62405.0,0.0641]
[1728224813615,0.0075,62419.0,62410.0,0.11]
[1728224813812,0.0075,62419.0,62405.0,0.6]
[1728224813813,0.11,62417.0,62416.0,0.04789766]
[1728224814017,0.11,62417.0,62415.0,0.0112]
[1728224814222,0.064084,62421.0,62416.0,0.04789364]
[1728224814422,0.064084,62421.0,62413.0,0.11]
[1728224814423,0.064084,62421.0,62414.0,0.05909364]
[1728224814621,0.11,62418.0,62415.0,0.04789364]
[1728224815118,0.064084,62421.0,62415.0,0.04789364]
[1728224815318,0.11,62416.0,62414.0,0.0112]
[1728224815529,0.11,62416.0,62413.0,0.11]
[1728224815714,0.11,62416.0,62414.0,0.001]
[1728224817009,0.11,62418.0,62414.0,0.001]
[1728224817212,0.11,62415.0,62414.0,0.001]
[1728224817519,0.11,62415.0,62414.0,0.002]
[1728224817711,0.11,62415.0,62414.0,0.001]
[1728224818515,0.11,62415.0,62414.0,0.002]
[1728224819827,0.0302,62422.0,62419.0,0.064086]
[1728224820020,0.0302,62422.0,62420.0,0.174085]
[1728224820421,0.3608,62423.0,62421.0,0.064083]
[1728224821112,0.3608,62423.0,62421.0,0.064483]
[1728224821531,0.3608,62423.0,62421.0,0.065483]
[1728224821824,0.3608,62423.0,62421.0,0.066483]
[1728224822024,0.3608,62435.0,62425.0,0.064079]
[1728224822212,0.3608,62435.0,62431.0,0.11]
[1728224822416,0.0944,62437.0,62431.0,0.4708]
[1728224822716,0.0075,62449.0,62432.0,0.064072]
[1728224823034,0.11,62445.0,62442.0,0.11]
[1728224823326,0.11,62444.0,62440.0,0.11]
[1728224823528,0.17406,62444.0,62440.0,0.11]
[1728224823726,0.11,62442.0,62437.0,0.0112]
[1728224823925,0.11,62439.0,62434.0,0.11]
[1728224824132,0.06175283,62435.0,62434.0,0.11]
[1728224824323,0.0654489,62435.0,62434.0,0.11]
[1728224824917,0.0654489,62435.0,62432.0,0.00240239]
[1728224825128,0.11,62433.0,62432.0,0.00240239]
[1728224825319,0.1754489,62433.0,62432.0,0.00240239]
[1728224825719,0.2395199,62433.0,62432.0,0.00240239]
[1728224826318,0.2395199,62433.0,62432.0,0.00280239]
[1728224827023,0.2395199,62433.0,62432.0,0.00380239]
[1728224827825,0.2395199,62433.0,62432.0,0.00480239]
[1728224828916,1.3200399,62433.0,62432.0,0.0024]
[1728224829231,0.1754489,62433.0,62432.0,0.0024]
[1728224829626,0.0654489,62433.0,62432.0,0.0024]
[1728224829826,0.1754489,62433.0,62432.0,0.0024]
[1728224831126,0.1754489,62433.0,62432.0,0.066472]
[1728224833632,0.0654489,62433.0,62432.0,0.176472]
[1728224834028,0.0654489,62433.0,62432.0,0.066472]
[1728224834434,0.0654489,62433.0,62432.0,0.18438976]
[1728224835228,0.0654489,62433.0,62432.0,0.18443545]
[1728224835431,0.0654489,62433.0,62432.0,0.066472]
[1728224835733,0.1754489,62433.0,62432.0,0.066472]
[1728224835937,0.0654489,62433.0,62432.0,0.066472]
[1728224836126,0.0654489,62433.0,62432.0,0.176472]
[1728224841537,0.0654489,62433.0,62432.0,0.176872]
[1728224842041,0.0654489,62433.0,62432.0,0.1128]
[1728224843331,0.0654489,62433.0,62432.0,0.0028]
[1728224844238,0.0654489,62433.0,62432.0,0.066872]
[1728224845343,0.0654489,62433.0,62432.0,0.176872]
[1728224848935,0.0654489,62433.0,62432.0,0.24073554]
[1728224849147,0.0074,62454.0,62448.0,0.064056]
[1728224849342,0.0326,62454.0,62448.0,0.174056]
[1728224850649,0.11,62452.0,62448.0,0.175056]
[1728224851346,0.0326,62454.0,62448.0,0.175056]
[1728224851543,0.11,62451.0,62448.0,0.176056]
[1728224852541,0.11,62451.0,62448.0,0.175056]
[1728224852748,0.11,62451.0,62448.0,0.066056]
[1728224853645,0.0326,62454.0,62448.0,0.176056]
[1728224853846,0.174046,62458.0,62448.0,0.176056]
[1728224853847,0.11,62458.0,62448.0,0.112]
[1728224854047,0.11,62458.0,62451.0,0.11]
[1728224854246,0.0647,62459.0,62455.0,0.064049]
[1728224854247,0.064048,62456.0,62455.0,0.064049]
[1728224854449,0.223223,62456.0,62455.0,0.064049]
[1728224854750,0.159175,62456.0,62455.0,0.064049]
[1728224855338,0.223223,62456.0,62455.0,0.064049]
[1728224855846,0.223223,62456.0,62451.0,0.065053]
[1728224856041,0.223223,62456.0,62455.0,0.001]
[1728224856042,0.174048,62456.0,62455.0,0.001]
[1728224856242,0.22313203,62456.0,62455.0,0.001]
[1728224856449,0.174048,62456.0,62455.0,0.001]
[1728224857442,0.174048,62456.0,62455.0,0.002]
[1728224858655,0.0647,62459.0,62458.0,0.064046]
[1728224858840,0.11387047,62459.0,62458.0,0.064046]
[1728224859241,0.11391644,62459.0,62458.0,0.064046]
[1728224859745,0.11391494,62459.0,62458.0,0.064046]
[1728224860153,0.17796094,62459.0,62458.0,0.001]
[1728224860663,0.17796094,62459.0,62458.0,0.002]
[1728224861239,0.128746,62459.0,62458.0,0.002]
[1728224865246,0.238746,62459.0,62458.0,0.002]
[1728224867641,0.128746,62459.0,62458.0,0.002]
[1728224867846,0.238746,62459.0,62458.0,0.002]
[1728224868241,0.174046,62459.0,62458.0,0.066046]
[1728224869253,0.28044244,62459.0,62458.0,0.066046]
[1728224871055,0.28044244,62459.0,62458.0,0.066446]
[1728224873260,0.28051324,62459.0,62458.0,0.066446]
[1728224873852,0.22331251,62459.0,62458.0,0.066446]
[1728224874356,0.28052099,62459.0,62458.0,0.066446]
[1728224874750,0.17052099,62459.0,62458.0,0.066446]
[1728224876359,0.064046,62459.0,62458.0,0.066446]
[1728224877570,0.0333,62461.0,62459.0,0.064044]
[1728224878769,0.097343,62461.0,62459.0,0.064044]
[1728224879164,0.097343,62461.0,62459.0,0.065044]
[1728224879569,0.097343,62461.0,62460.0,0.064044]
[1728224881569,0.0037,62467.0,62459.0,0.112]
[1728224881773,0.00243109,62469.0,62468.0,0.064035]
[1728224883165,0.0037,62476.0,62468.0,0.001]
[1728224883384,0.3608,62477.0,62475.0,0.11]
[1728224884373,0.3608,62477.0,62476.0,0.064027]
[1728224884873,0.00240142,62480.0,62476.0,0.064027]
[1728224885666,0.11,62479.0,62476.0,0.064027]
[1728224885873,0.064025,62478.0,62475.0,0.001]
[1728224886066,0.00240142,62480.0,62475.0,0.0014]
[1728224886067,0.174027,62476.0,62475.0,0.0014]
[1728224886374,0.174027,62476.0,62475.0,0.0024]
[1728224886672,0.654227,62476.0,62475.0,0.0024]
[1728224887063,1.1902,62476.0,62471.0,0.0112]
[1728224887264,0.174031,62472.0,62471.0,0.0112]
[1728224887468,0.174031,62472.0,62470.0,0.04]
[1728224887669,0.064032,62471.0,62470.0,0.04]
[1728224887871,0.174032,62471.0,62470.0,0.04]
[1728224888277,0.11,62471.0,62470.0,0.0404]
[1728224889176,0.11,62471.0,62470.0,0.104433]
[1728224889367,0.11,62471.0,62470.0,0.105433]
[1728224889680,0.11,62474.0,62473.0,0.06403]
[1728224891167,0.11,62474.0,62470.0,0.0536]
[1728224891372,0.00240142,62480.0,62470.0,0.0414]
[1728224891373,0.174032,62471.0,62470.0,0.0414]
[1728224891677,0.11,62471.0,62470.0,0.0414]
[1728224892076,0.1421,62471.0,62470.0,0.0414]
[1728224892577,0.1421,62471.0,62470.0,0.0404]
[1728224893167,0.206132,62471.0,62470.0,0.0414]
[1728224893377,0.206132,62471.0,62470.0,0.0424]
[1728224895078,0.1421,62471.0,62470.0,0.0424]
[1728224895581,0.19143377,62471.0,62470.0,0.0424]
[1728224895974,0.19143377,62471.0,62470.0,0.0428]
[1728224897085,0.25546577,62471.0,62470.0,0.0428]
[1728224898980,0.73570577,62471.0,62470.0,0.0428]
[1728224899178,1.33570577,62471.0,62470.0,0.0428]
[1728224899375,1.286372,62471.0,62470.0,0.0428]
[1728224899579,1.286372,62471.0,62465.0,0.372]
[1728224899580,0.064037,62467.0,62465.0,0.372]
[1728224899778,0.174038,62466.0,62465.0,0.3608]
[1728224899978,0.174438,62466.0,62465.0,0.3608]
[1728224900186,0.064042,62463.0,62461.0,0.064043]
[1728224900377,0.1104,62462.0,62461.0,0.064043]
[1728224901182,0.1104,62462.0,62461.0,0.064443]
[1728224901379,0.1104,62462.0,62461.0,0.069443]
[1728224901785,0.174442,62462.0,62461.0,0.0054]
[1728224902693,0.174442,62462.0,62461.0,0.0074]
[1728224902883,0.174442,62462.0,62461.0,0.0054]
[1728224903283,0.654722,62462.0,62458.0,0.0004]
[1728224903592,0.174445,62459.0,62458.0,0.0004]
[1728224904491,0.174445,62459.0,62458.0,0.0008]
[1728224904682,0.064049,62455.0,62454.0,0.0112]
[1728224904886,0.064049,62455.0,62451.0,0.0116]
[1728224904887,0.064051,62453.0,62451.0,0.0116]
[1728224905184,0.174052,62452.0,62451.0,0.0004]
[1728224905386,0.174452,62452.0,62451.0,0.0004]
[1728224905688,1.015612,62452.0,62451.0,0.0004]
[1728224905882,1.015612,62452.0,62451.0,0.0008]
[1728224906282,1.015612,62452.0,62451.0,0.0038]
[1728224906483,1.615612,62452.0,62451.0,0.0038]
[1728224906782,0.064055,62449.0,62448.0,0.0112]
[1728224907085,0.174455,62449.0,62444.0,0.07526]
[1728224907297,0.1104,62445.0,62444.0,0.06406]
[1728224907691,0.1104,62445.0,62444.0,0.06446]
[1728224908493,0.0004,62445.0,62444.0,0.06446]
[1728224909894,0.0014,62445.0,62444.0,0.07946]
[1728224912085,0.0014,62445.0,62444.0,0.07986]
[1728224913698,0.0014,62445.0,62444.0,0.24986]
[1728224913903,0.0014,62445.0,62444.0,0.07986]
[1728224914291,0.17,62452.0,62446.0,0.064058]
[1728224914601,0.17,62452.0,62447.0,0.064056]
[1728224914992,0.234052,62452.0,62447.0,0.064056]
[1728224915205,0.17,62449.0,62447.0,0.064056]
[1728224915397,0.234055,62449.0,62447.0,0.0004]
[1728224915588,0.17,62449.0,62447.0,0.0004]
[1728224915792,0.095156,62448.0,62447.0,0.0004]
[1728224916187,0.095156,62448.0,62447.0,0.0064]
[1728224916502,0.095156,62448.0,62447.0,0.0094]
[1728224918190,0.095156,62448.0,62447.0,0.0064]
[1728224918395,0.095156,62448.0,62447.0,0.0094]
[1728224918794,0.575556,62448.0,62447.0,0.0094]
[1728224919095,0.575556,62448.0,62447.0,0.0064]
[1728224919300,0.578556,62448.0,62447.0,0.0064]
[1728224919501,0.578556,62448.0,62447.0,0.0004]
[1728224919686,0.579556,62448.0,62447.0,0.0004]
[1728224919891,1.176556,62448.0,62447.0,0.0004]
[1728224920096,1.243956,62448.0,62447.0,0.0014]
[1728224920294,1.248956,62448.0,62447.0,0.0024]
[1728224920813,1.243956,62448.0,62447.0,0.0024]
[1728224920993,1.248956,62448.0,62447.0,0.0024]
[1728224921592,1.245956,62448.0,62447.0,0.0014]
[1728224921803,1.248956,62448.0,62447.0,0.0024]
[1728224923109,1.249956,62448.0,62447.0,0.0024]
[1728224925395,1.249956,62448.0,62444.0,0.3616]
[1728224925396,1.249956,62448.0,62444.0,0.0008]
[1728224925599,0.234459,62445.0,62444.0,0.0008]
[1728224925996,0.234459,62445.0,62437.0,0.0112]
[1728224925997,0.064066,62438.0,62437.0,0.0112]
[1728224926207,0.064066,62438.0,62434.0,0.0315]
[1728224926208,0.064068,62436.0,62434.0,0.0315]
[1728224926598,0.064468,62436.0,62434.0,0.0315]
[1728224927300,0.064468,62436.0,62435.0,0.3636023]
[1728224927804,0.064468,62436.0,62435.0,0.3612]
[1728224928002,0.064468,62436.0,62435.0,0.3652]
[1728224928420,0.064468,62436.0,62435.0,0.3662]
[1728224928802,0.234468,62436.0,62435.0,0.3662]
[1728224932512,0.174468,62436.0,62435.0,0.3662]
[1728224933295,0.174468,62436.0,62435.0,0.0054]
[1728224935610,0.174468,62436.0,62435.0,0.069469]
[1728224936010,0.174468,62436.0,62435.0,0.0054]
[1728224946324,0.174468,62436.0,62435.0,0.0058]
[1728224948117,0.2225665,62436.0,62435.0,0.0058]
[1728224950025,0.2225874,62436.0,62435.0,0.0058]
[1728224951536,0.174468,62436.0,62435.0,0.0058]
[1728224955536,0.206468,62436.0,62435.0,0.0058]
[1728224958533,0.206468,62436.0,62429.0,0.06376933]
[1728224958534,0.064075,62429.0,62424.0,0.06376933]
[1728224958727,0.064079,62426.0,62423.0,0.12785033]
[1728224958928,0.0004,62424.0,62423.0,0.064081]
[1728224959335,0.064082,62423.0,62422.0,0.3608]
[1728224959636,0.174482,62423.0,62422.0,0.3612]
[1728224960835,0.175482,62423.0,62422.0,0.3882]
[1728224967941,0.175482,62423.0,62422.0,0.0274]
[1728224969635,0.0014,62423.0,62422.0,0.0274]
[1728224969841,0.1114,62423.0,62422.0,0.0274]
[1728224970946,0.1114,62423.0,62422.0,0.091483]
[1728224981745,0.1114,62423.0,62422.0,0.089683]
[1728224982452,0.175482,62423.0,62422.0,0.089683]
[1728224982843,0.175482,62423.0,62422.0,0.090083]
[1728224985041,0.175482,62423.0,62422.0,0.026]
[1728224989655,0.175482,62423.0,62422.0,0.08976933]
[1728224990253,0.175482,62423.0,62422.0,0.09016933]
[1728224990960,0.175482,62423.0,62422.0,0.090483]
[1728224995858,0.0014,62423.0,62422.0,0.77782122]
[1728224996058,0.0014,62423.0,62422.0,0.99301985]
[1728224996357,0.0004,62424.0,62422.0,1.40953685]
[1728224996561,0.0004,62429.0,62423.0,0.64142022]
[1728224996764,0.0004,62429.0,62428.0,0.174077]
[1728224997060,0.0004,62429.0,62428.0,0.99981385]
[1728224997263,0.0004,62429.0,62428.0,1.38457522]
[1728224997645,0.0004,62429.0,62428.0,0.687837]
[1728224997847,0.0004,62429.0,62428.0,0.30394633]
[1728224998045,0.0079,62436.0,62435.0,0.064069]
[1728224998357,0.0004,62436.0,62435.0,0.174069]
[1728224999361,0.0004,62436.0,62435.0,0.174469]
[1728224999752,0.0004,62436.0,62435.0,0.068469]
[1728225000263,0.0004,62436.0,62435.0,0.069469]
[1728225000463,0.0004,62438.0,62437.0,0.064067]
[1728225000965,0.0004,62438.0,62437.0,1.22429519]
[1728225001656,0.0004,62438.0,62437.0,1.144947]
[1728225002455,0.0014,62438.0,62437.0,1.146947]
[1728225002849,0.0014,62438.0,62437.0,1.507747]
[1728225003253,0.0075,62443.0,62442.0,0.064062]
[1728225003455,0.0004,62445.0,62444.0,0.06406]
[1728225004250,0.1104,62445.0,62444.0,0.06406]
[1728225004450,0.1104,62445.0,62439.0,0.064065]
[1728225004654,0.1104,62440.0,62437.0,0.3632]
[1728225004863,0.0004,62438.0,62437.0,0.3632]